[Event "Titled Tuesday Blitz April 18 Early 2023"]
[White "Tyagi, Kushan"]
[Black "Sanchez, Robert"]
[WhiteFideId "2040069"]
[BlackFideId "2034360"]
[WhiteElo "2281"]
[BlackElo "1969"]
[Result "1-0"]
[Round "06"]
[TimeControl "180+2"]
[Date "2023.04.18"]
[WhiteClock "0:00:12"]
[BlackClock "0:01:11"]

1. d4 {[%clk 0:02:57]}  Nf6 {[%clk 0:02:54]} 2. c4 {[%clk 0:02:56]}  e6 {[%clk 0:02:50]} 3. g3 {[%clk 0:02:53]}  c5 {[%clk 0:02:47]} 4. d5 {[%clk 0:02:52]}  b5 {[%clk 0:02:48]} 5. dxe6 {[%clk 0:02:34]}  fxe6 {[%clk 0:02:47]} 6. Bg2 {[%clk 0:02:34]}  d5 {[%clk 0:02:47]} 7. cxb5 {[%clk 0:02:19]}  a6 {[%clk 0:02:41]} 8. Nc3 {[%clk 0:02:17]}  Bd6 {[%clk 0:02:41]} 9. Nf3 {[%clk 0:02:14]}  O-O {[%clk 0:02:40]} 10. O-O {[%clk 0:02:12]}  Ra7 {[%clk 0:02:35]} 11. e4 {[%clk 0:02:04]}  d4 {[%clk 0:02:35]} 12. e5 {[%clk 0:02:03]}  dxc3 {[%clk 0:02:32]} 13. exd6 {[%clk 0:02:00]}  axb5 {[%clk 0:02:28]} 14. bxc3 {[%clk 0:01:59]}  Nd5 {[%clk 0:02:21]} 15. c4 {[%clk 0:01:49]}  bxc4 {[%clk 0:02:20]} 16. Ne5 {[%clk 0:01:25]}  Qf6 {[%clk 0:02:04]} 17. f4 {[%clk 0:00:42]}  Rd8 {[%clk 0:01:52]} 18. Bxd5 {[%clk 0:00:42]}  exd5 {[%clk 0:01:52]} 19. Qxd5+ {[%clk 0:00:40]}  Be6 {[%clk 0:01:52]} 20. Qxc5 {[%clk 0:00:40]}  Rb7 {[%clk 0:01:43]} 21. Be3 {[%clk 0:00:33]}  Nd7 {[%clk 0:01:42]} 22. Qc6 {[%clk 0:00:29]}  Nxe5 {[%clk 0:01:39]} 23. Qxb7 {[%clk 0:00:23]}  Ng4 {[%clk 0:01:35]} 24. Bc5 {[%clk 0:00:23]}  Rxd6 {[%clk 0:01:22]} 25. Bxd6 {[%clk 0:00:16]}  Qd4+ {[%clk 0:01:22]} 26. Kg2 {[%clk 0:00:14]}  Bd5+ {[%clk 0:01:19]} 27. Qxd5+ {[%clk 0:00:14]}  Qxd5+ {[%clk 0:01:20]} 28. Rf3 {[%clk 0:00:13]}  Qxd6 {[%clk 0:01:18]} 29. Re1 {[%clk 0:00:13]}  h5 {[%clk 0:01:15]} 30. h3 {[%clk 0:00:13]}  Qd2+ {[%clk 0:01:11]} 31. Kf1 {[%clk 0:00:12]} 1-0


[Site "https://www.chess.com"]

[Event "Titled Tuesday Blitz April 18 Early 2023"]
[White "Mihajlovskij"]
[Black "lluiss"]
[WhiteElo "1960"]
[BlackElo "2280"]
[Result "0-1"]
[Round "06"]
[TimeControl "180+2"]
[Date "2023.04.18"]
[WhiteClock "0:00:19"]
[BlackClock "0:00:16"]

1. e4 {[%clk 0:03:00]}  c5 {[%clk 0:02:59]} 2. Nf3 {[%clk 0:03:00]}  d6 {[%clk 0:02:59]} 3. d4 {[%clk 0:03:01]}  cxd4 {[%clk 0:03:00]} 4. Qxd4 {[%clk 0:03:01]}  Nc6 {[%clk 0:02:59]} 5. Bb5 {[%clk 0:03:00]}  Bd7 {[%clk 0:02:59]} 6. Bxc6 {[%clk 0:03:01]}  Bxc6 {[%clk 0:03:00]} 7. Nc3 {[%clk 0:03:01]}  Nf6 {[%clk 0:02:59]} 8. Bg5 {[%clk 0:03:01]}  e6 {[%clk 0:02:59]} 9. O-O-O {[%clk 0:03:00]}  Be7 {[%clk 0:03:00]} 10. Rhe1 {[%clk 0:03:01]}  O-O {[%clk 0:02:59]} 11. Qd3 {[%clk 0:03:01]}  Qa5 {[%clk 0:02:53]} 12. Kb1 {[%clk 0:03:01]}  Rfc8 {[%clk 0:02:46]} 13. h4 {[%clk 0:02:49]}  Rab8 {[%clk 0:02:46]} 14. Nd4 {[%clk 0:02:48]}  b5 {[%clk 0:02:38]} 15. Bxf6 {[%clk 0:02:42]}  Bxf6 {[%clk 0:02:37]} 16. Nb3 {[%clk 0:02:38]}  Qb6 {[%clk 0:02:27]} 17. f3 {[%clk 0:02:32]}  a5 {[%clk 0:02:25]} 18. Ne2 {[%clk 0:02:17]}  d5 {[%clk 0:02:05]} 19. Nbd4 {[%clk 0:02:09]}  dxe4 {[%clk 0:02:02]} 20. fxe4 {[%clk 0:02:09]}  Rd8 {[%clk 0:01:46]} 21. Qe3 {[%clk 0:02:04]}  e5 {[%clk 0:01:40]} 22. Nf5 {[%clk 0:01:56]}  Qxe3 {[%clk 0:01:40]} 23. Nxe3 {[%clk 0:01:57]}  Bxh4 {[%clk 0:01:37]} 24. g3 {[%clk 0:01:54]}  Bg5 {[%clk 0:01:32]} 25. Nd5 {[%clk 0:01:54]}  Rd7 {[%clk 0:01:17]} 26. Ng1 {[%clk 0:01:45]}  Rbd8 {[%clk 0:01:14]} 27. Nf3 {[%clk 0:01:45]}  Bf6 {[%clk 0:01:09]} 28. g4 {[%clk 0:01:32]}  Bxd5 {[%clk 0:01:06]} 29. exd5 {[%clk 0:01:31]}  Rxd5 {[%clk 0:01:07]} 30. Rxd5 {[%clk 0:01:30]}  Rxd5 {[%clk 0:01:06]} 31. g5 {[%clk 0:01:29]}  Be7 {[%clk 0:01:07]} 32. Nxe5 {[%clk 0:01:30]}  Bxg5 {[%clk 0:00:58]} 33. Nc6 {[%clk 0:01:24]}  h5 {[%clk 0:00:54]} 34. Nxa5 {[%clk 0:01:23]}  h4 {[%clk 0:00:54]} 35. c4 {[%clk 0:01:20]}  bxc4 {[%clk 0:00:53]} 36. Nxc4 {[%clk 0:01:21]}  h3 {[%clk 0:00:52]} 37. Rh1 {[%clk 0:01:20]}  Rd3 {[%clk 0:00:51]} 38. Ne5 {[%clk 0:01:19]}  Re3 {[%clk 0:00:48]} 39. Ng4 {[%clk 0:01:14]}  Rg3 {[%clk 0:00:33]} 40. Nf2 {[%clk 0:01:10]}  Rg2 {[%clk 0:00:32]} 41. Nxh3 {[%clk 0:01:08]}  Bf6 {[%clk 0:00:32]} 42. Rg1 {[%clk 0:00:35]}  Rxb2+ {[%clk 0:00:31]} 43. Kc1 {[%clk 0:00:36]}  Rxa2 {[%clk 0:00:31]} 44. Rg4 {[%clk 0:00:35]}  Rh2 {[%clk 0:00:24]} 45. Nf4 {[%clk 0:00:33]}  Rh4 {[%clk 0:00:23]} 46. Rxh4 {[%clk 0:00:33]}  Bxh4 {[%clk 0:00:23]} 47. Ng2 {[%clk 0:00:33]}  Bg5+ {[%clk 0:00:23]} 48. Kd1 {[%clk 0:00:34]}  f5 {[%clk 0:00:22]} 49. Ke2 {[%clk 0:00:35]}  g6 {[%clk 0:00:22]} 50. Kf3 {[%clk 0:00:36]}  Kf7 {[%clk 0:00:22]} 51. Ne1 {[%clk 0:00:36]}  Bf6 {[%clk 0:00:21]} 52. Nd3 {[%clk 0:00:37]}  Bd4 {[%clk 0:00:20]} 53. Nf4 {[%clk 0:00:36]}  Kf6 {[%clk 0:00:20]} 54. Nd5+ {[%clk 0:00:36]}  Kg5 {[%clk 0:00:19]} 55. Nf4 {[%clk 0:00:33]}  Be5 {[%clk 0:00:19]} 56. Nd5 {[%clk 0:00:27]}  Bd6 {[%clk 0:00:17]} 57. Nc3 {[%clk 0:00:25]}  Kf6 {[%clk 0:00:16]} 58. Nd5+ {[%clk 0:00:25]}  Ke5 {[%clk 0:00:16]} 59. Nf4 {[%clk 0:00:24]}  g5 {[%clk 0:00:16]} 60. Ng6+ {[%clk 0:00:24]}  Kf6 {[%clk 0:00:16]} 61. Nh8 {[%clk 0:00:20]}  Kg7 {[%clk 0:00:16]} 62. Nf7 {[%clk 0:00:19]}  Kxf7 {[%clk 0:00:16]} 0-1


[Site "https://www.chess.com"]

[Event "Titled Tuesday Blitz April 18 Early 2023"]
[White "Smietanska, Wiktoria"]
[Black "Vargas, Mauricio"]
[WhiteFideId "21869359"]
[BlackFideId "4404572"]
[WhiteElo "1995"]
[BlackElo "1998"]
[Result "1-0"]
[Round "06"]
[TimeControl "180+2"]
[Date "2023.04.18"]
[WhiteClock "0:01:10"]
[BlackClock "0:00:01"]

1. c4 {[%clk 0:02:56]}  d6 {[%clk 0:00:44]} 2. Nc3 {[%clk 0:02:54]}  e5 {[%clk 0:00:43]} 3. g3 {[%clk 0:02:52]}  Nc6 {[%clk 0:00:43]} 4. Bg2 {[%clk 0:02:53]}  f5 {[%clk 0:00:42]} 5. e3 {[%clk 0:02:51]}  Bd7 {[%clk 0:00:42]} 6. d4 {[%clk 0:02:51]}  e4 {[%clk 0:00:40]} 7. Nge2 {[%clk 0:02:48]}  Nf6 {[%clk 0:00:40]} 8. h4 {[%clk 0:02:48]}  g6 {[%clk 0:00:38]} 9. Nf4 {[%clk 0:02:48]}  Bg7 {[%clk 0:00:35]} 10. O-O {[%clk 0:02:45]}  O-O {[%clk 0:00:36]} 11. Rb1 {[%clk 0:02:41]}  Nb4 {[%clk 0:00:34]} 12. Qb3 {[%clk 0:02:35]}  Nc6 {[%clk 0:00:32]} 13. c5+ {[%clk 0:02:24]}  Kh8 {[%clk 0:00:29]} 14. cxd6 {[%clk 0:02:24]}  cxd6 {[%clk 0:00:28]} 15. Qxb7 {[%clk 0:02:14]}  Rb8 {[%clk 0:00:27]} 16. Qa6 {[%clk 0:02:11]}  Rb6 {[%clk 0:00:18]} 17. Qe2 {[%clk 0:02:01]}  Nb4 {[%clk 0:00:15]} 18. a3 {[%clk 0:01:57]}  Nc6 {[%clk 0:00:13]} 19. b4 {[%clk 0:01:54]}  Ne7 {[%clk 0:00:10]} 20. Qa2 {[%clk 0:01:48]}  Qc7 {[%clk 0:00:09]} 21. Bd2 {[%clk 0:01:43]}  h6 {[%clk 0:00:06]} 22. Rfc1 {[%clk 0:01:41]}  g5 {[%clk 0:00:06]} 23. Ncd5 {[%clk 0:01:36]}  Qb8 {[%clk 0:00:06]} 24. Nxb6 {[%clk 0:01:31]}  axb6 {[%clk 0:00:05]} 25. hxg5 {[%clk 0:01:29]}  hxg5 {[%clk 0:00:05]} 26. Ne2 {[%clk 0:01:29]}  Kh7 {[%clk 0:00:03]} 27. a4 {[%clk 0:01:27]}  Kg6 {[%clk 0:00:04]} 28. a5 {[%clk 0:01:27]}  Rh8 {[%clk 0:00:04]} 29. a6 {[%clk 0:01:18]}  Qg8 {[%clk 0:00:02]} 30. a7 {[%clk 0:01:15]}  Bc6 {[%clk 0:00:02]} 31. Qxg8 {[%clk 0:01:13]}  Rxg8 {[%clk 0:00:01]} 32. b5 {[%clk 0:01:10]} 1-0


[Site "https://www.chess.com"]

[Event "Titled Tuesday Blitz April 18 Early 2023"]
[White "Coelho, Ramyres Santana"]
[Black "Semenova, Alina"]
[WhiteFideId "2120690"]
[BlackFideId "24113875"]
[WhiteElo "1888"]
[BlackElo "1833"]
[Result "1-0"]
[Round "06"]
[TimeControl "180+2"]
[Date "2023.04.18"]
[WhiteClock "0:02:08"]
[BlackClock "0:00:38"]

1. e4 {[%clk 0:02:57]}  e5 {[%clk 0:02:10]} 2. Nf3 {[%clk 0:02:57]}  Nf6 {[%clk 0:02:11]} 3. d4 {[%clk 0:02:55]}  Nxe4 {[%clk 0:02:10]} 4. Nxe5 {[%clk 0:02:55]}  d5 {[%clk 0:02:11]} 5. Bd3 {[%clk 0:02:52]}  Bd6 {[%clk 0:02:09]} 6. O-O {[%clk 0:02:52]}  O-O {[%clk 0:02:08]} 7. f3 {[%clk 0:02:52]}  Nf6 {[%clk 0:02:06]} 8. Nc3 {[%clk 0:02:51]}  c6 {[%clk 0:02:07]} 9. Bg5 {[%clk 0:02:51]}  h6 {[%clk 0:02:06]} 10. Bh4 {[%clk 0:02:51]}  Nbd7 {[%clk 0:02:05]} 11. f4 {[%clk 0:02:50]}  Qb6 {[%clk 0:01:59]} 12. Bf2 {[%clk 0:02:33]}  Qxb2 {[%clk 0:01:56]} 13. Ne2 {[%clk 0:02:31]}  Ne4 {[%clk 0:01:52]} 14. Bxe4 {[%clk 0:02:25]}  dxe4 {[%clk 0:01:52]} 15. Ng3 {[%clk 0:02:26]}  f5 {[%clk 0:01:45]} 16. Ng6 {[%clk 0:02:22]}  Rf7 {[%clk 0:01:43]} 17. Nh4 {[%clk 0:02:20]}  Qb5 {[%clk 0:00:58]} 18. Be3 {[%clk 0:02:14]}  Nf6 {[%clk 0:00:50]} 19. a4 {[%clk 0:02:12]}  Qd5 {[%clk 0:00:47]} 20. c4 {[%clk 0:02:10]}  Qxc4 {[%clk 0:00:47]} 21. Nhxf5 {[%clk 0:02:09]}  Bxf5 {[%clk 0:00:43]} 22. Nxf5 {[%clk 0:02:10]}  Nd5 {[%clk 0:00:38]} 23. Nxd6 {[%clk 0:02:08]} 1-0


[Site "https://www.chess.com"]

[Event "Titled Tuesday Blitz April 18 Early 2023"]
[White "Kohler, Aran"]
[Black "Yanayt, Eugene"]
[WhiteFideId "1002856"]
[BlackFideId "2020165"]
[WhiteElo "2242"]
[BlackElo "2083"]
[Result "1-0"]
[Round "06"]
[TimeControl "180+2"]
[Date "2023.04.18"]
[WhiteClock "0:00:06"]
[BlackClock "0:00:09"]

1. d4 {[%clk 0:02:55]}  Nf6 {[%clk 0:02:59]} 2. Nf3 {[%clk 0:02:54]}  g6 {[%clk 0:02:59]} 3. Bg5 {[%clk 0:02:55]}  Bg7 {[%clk 0:02:59]} 4. Nbd2 {[%clk 0:02:55]}  d5 {[%clk 0:02:58]} 5. e3 {[%clk 0:02:55]}  O-O {[%clk 0:02:58]} 6. Bd3 {[%clk 0:02:56]}  c5 {[%clk 0:02:57]} 7. c3 {[%clk 0:02:56]}  Qb6 {[%clk 0:02:56]} 8. b3 {[%clk 0:02:47]}  Nc6 {[%clk 0:02:55]} 9. Rc1 {[%clk 0:02:35]}  Bf5 {[%clk 0:02:52]} 10. Bxf5 {[%clk 0:02:27]}  gxf5 {[%clk 0:02:51]} 11. h4 {[%clk 0:02:03]}  Ne4 {[%clk 0:02:50]} 12. Nxe4 {[%clk 0:01:55]}  fxe4 {[%clk 0:02:50]} 13. Nd2 {[%clk 0:01:53]}  e5 {[%clk 0:02:46]} 14. dxc5 {[%clk 0:01:48]}  Qxc5 {[%clk 0:02:45]} 15. h5 {[%clk 0:01:47]}  h6 {[%clk 0:02:35]} 16. Bh4 {[%clk 0:01:36]}  f5 {[%clk 0:02:35]} 17. O-O {[%clk 0:01:19]}  Rf7 {[%clk 0:02:20]} 18. b4 {[%clk 0:01:15]}  Qd6 {[%clk 0:02:15]} 19. b5 {[%clk 0:01:08]}  Nd8 {[%clk 0:02:13]} 20. c4 {[%clk 0:01:05]}  d4 {[%clk 0:02:10]} 21. c5 {[%clk 0:01:05]}  Qd7 {[%clk 0:02:01]} 22. Bxd8 {[%clk 0:01:03]}  Qxd8 {[%clk 0:01:35]} 23. Nc4 {[%clk 0:00:57]}  Qg5 {[%clk 0:00:42]} 24. Nd6 {[%clk 0:00:55]}  Rd7 {[%clk 0:00:38]} 25. Qb3+ {[%clk 0:00:55]}  Kh7 {[%clk 0:00:37]} 26. Qe6 {[%clk 0:00:42]}  Rad8 {[%clk 0:00:19]} 27. Qxf5+ {[%clk 0:00:38]}  Qxf5 {[%clk 0:00:19]} 28. Nxf5 {[%clk 0:00:39]}  d3 {[%clk 0:00:18]} 29. Rfd1 {[%clk 0:00:38]}  Rc7 {[%clk 0:00:18]} 30. Nd6 {[%clk 0:00:33]}  Bf8 {[%clk 0:00:16]} 31. Nxe4 {[%clk 0:00:32]}  Rd5 {[%clk 0:00:16]} 32. Rc3 {[%clk 0:00:30]}  Kg7 {[%clk 0:00:16]} 33. Rdxd3 {[%clk 0:00:29]}  Rxd3 {[%clk 0:00:15]} 34. Rxd3 {[%clk 0:00:29]}  Kf7 {[%clk 0:00:16]} 35. Rc3 {[%clk 0:00:28]}  Ke6 {[%clk 0:00:16]} 36. f3 {[%clk 0:00:29]}  Kd5 {[%clk 0:00:16]} 37. Nf6+ {[%clk 0:00:26]}  Ke6 {[%clk 0:00:16]} 38. Ne4 {[%clk 0:00:26]}  Kd5 {[%clk 0:00:16]} 39. g4 {[%clk 0:00:21]}  Be7 {[%clk 0:00:16]} 40. Kf2 {[%clk 0:00:20]}  Ke6 {[%clk 0:00:16]} 41. Kg3 {[%clk 0:00:18]}  Rd7 {[%clk 0:00:16]} 42. a4 {[%clk 0:00:18]}  Rc7 {[%clk 0:00:17]} 43. a5 {[%clk 0:00:18]}  Rd7 {[%clk 0:00:17]} 44. b6 {[%clk 0:00:18]}  axb6 {[%clk 0:00:17]} 45. axb6 {[%clk 0:00:17]}  Rd1 {[%clk 0:00:18]} 46. c6 {[%clk 0:00:17]}  bxc6 {[%clk 0:00:18]} 47. Rxc6+ {[%clk 0:00:16]}  Kd7 {[%clk 0:00:19]} 48. Rxh6 {[%clk 0:00:16]}  Rb1 {[%clk 0:00:18]} 49. Rg6 {[%clk 0:00:13]}  Rg1+ {[%clk 0:00:18]} 50. Kf2 {[%clk 0:00:12]}  Rb1 {[%clk 0:00:19]} 51. h6 {[%clk 0:00:12]}  Bh4+ {[%clk 0:00:19]} 52. Ke2 {[%clk 0:00:11]}  Rb2+ {[%clk 0:00:18]} 53. Kd3 {[%clk 0:00:11]}  Be1 {[%clk 0:00:18]} 54. h7 {[%clk 0:00:10]}  Rh2 {[%clk 0:00:14]} 55. Rg7+ {[%clk 0:00:08]}  Kc6 {[%clk 0:00:14]} 56. b7 {[%clk 0:00:08]}  Ba5 {[%clk 0:00:13]} 57. b8=Q {[%clk 0:00:07]}  Kd5 {[%clk 0:00:09]} 58. Qd6# {[%clk 0:00:06]} 1-0


[Site "https://www.chess.com"]

[Event "Titled Tuesday Blitz April 18 Early 2023"]
[White "ryutherunner"]
[Black "Sankalan Shah"]
[BlackFideId "25600362"]
[WhiteElo "2115"]
[BlackElo "2118"]
[Result "1-0"]
[Round "06"]
[TimeControl "180+2"]
[Date "2023.04.18"]
[WhiteClock "0:01:38"]
[BlackClock "0:00:46"]

1. d4 {[%clk 0:03:00]}  Nf6 {[%clk 0:02:53]} 2. c4 {[%clk 0:03:00]}  e6 {[%clk 0:02:50]} 3. Nc3 {[%clk 0:03:00]}  Bb4 {[%clk 0:02:50]} 4. Qb3 {[%clk 0:02:49]}  c5 {[%clk 0:02:48]} 5. Nf3 {[%clk 0:02:46]}  Nc6 {[%clk 0:02:40]} 6. e3 {[%clk 0:02:43]}  O-O {[%clk 0:02:35]} 7. Bd2 {[%clk 0:02:43]}  d5 {[%clk 0:02:29]} 8. dxc5 {[%clk 0:02:40]}  Bxc5 {[%clk 0:02:28]} 9. cxd5 {[%clk 0:02:40]}  exd5 {[%clk 0:02:28]} 10. a3 {[%clk 0:02:36]}  d4 {[%clk 0:02:16]} 11. Na4 {[%clk 0:02:16]}  dxe3 {[%clk 0:02:09]} 12. fxe3 {[%clk 0:02:11]}  Be6 {[%clk 0:01:59]} 13. Qc2 {[%clk 0:02:08]}  Be7 {[%clk 0:01:49]} 14. Be2 {[%clk 0:02:04]}  Rc8 {[%clk 0:01:44]} 15. Nc3 {[%clk 0:02:02]}  Qb6 {[%clk 0:01:34]} 16. Na4 {[%clk 0:01:54]}  Nd4 {[%clk 0:01:23]} 17. Nxd4 {[%clk 0:01:49]}  Rxc2 {[%clk 0:01:20]} 18. Nxb6 {[%clk 0:01:47]}  Rxb2 {[%clk 0:00:55]} 19. Na4 {[%clk 0:01:46]}  Ne4 {[%clk 0:00:46]} 20. Nxb2 {[%clk 0:01:38]} 1-0


[Site "https://www.chess.com"]

[Event "Titled Tuesday Blitz April 18 Early 2023"]
[White "Fabris, Alberto"]
[Black "rionelG"]
[WhiteFideId "801348"]
[WhiteElo "2107"]
[BlackElo "2189"]
[Result "0-1"]
[Round "06"]
[TimeControl "180+2"]
[Date "2023.04.18"]
[WhiteClock "0:00:03"]
[BlackClock "0:00:01"]

1. e4 {[%clk 0:03:00]}  c5 {[%clk 0:02:42]} 2. Nf3 {[%clk 0:03:00]}  d6 {[%clk 0:02:42]} 3. Bb5+ {[%clk 0:03:00]}  Nd7 {[%clk 0:02:41]} 4. O-O {[%clk 0:02:59]}  a6 {[%clk 0:02:42]} 5. Be2 {[%clk 0:02:58]}  Ngf6 {[%clk 0:02:42]} 6. d3 {[%clk 0:02:56]}  g6 {[%clk 0:02:39]} 7. c3 {[%clk 0:02:56]}  b6 {[%clk 0:02:32]} 8. Nbd2 {[%clk 0:02:56]}  Bb7 {[%clk 0:02:32]} 9. Re1 {[%clk 0:02:56]}  Bg7 {[%clk 0:02:30]} 10. Nf1 {[%clk 0:02:56]}  O-O {[%clk 0:02:29]} 11. Ng3 {[%clk 0:02:56]}  Rc8 {[%clk 0:02:29]} 12. Bf1 {[%clk 0:02:56]}  Ne5 {[%clk 0:02:22]} 13. Bf4 {[%clk 0:02:44]}  Nxf3+ {[%clk 0:00:24]} 14. Qxf3 {[%clk 0:02:43]}  e5 {[%clk 0:00:25]} 15. Bg5 {[%clk 0:02:41]}  h6 {[%clk 0:00:25]} 16. Be3 {[%clk 0:02:39]}  d5 {[%clk 0:00:24]} 17. Rad1 {[%clk 0:02:31]}  Qc7 {[%clk 0:00:24]} 18. Bc1 {[%clk 0:02:18]}  Rfe8 {[%clk 0:00:22]} 19. Bxh6 {[%clk 0:02:14]}  Nxe4 {[%clk 0:00:20]} 20. Bxg7 {[%clk 0:02:10]}  Nxg3 {[%clk 0:00:20]} 21. Bxe5 {[%clk 0:02:03]}  Rxe5 {[%clk 0:00:20]} 22. Qxg3 {[%clk 0:01:59]}  Rxe1 {[%clk 0:00:19]} 23. Rxe1 {[%clk 0:01:58]}  Qxg3 {[%clk 0:00:18]} 24. hxg3 {[%clk 0:01:57]}  d4 {[%clk 0:00:19]} 25. Re7 {[%clk 0:01:54]}  Bd5 {[%clk 0:00:19]} 26. c4 {[%clk 0:01:54]}  Be6 {[%clk 0:00:19]} 27. Rb7 {[%clk 0:01:53]}  b5 {[%clk 0:00:19]} 28. cxb5 {[%clk 0:01:51]}  axb5 {[%clk 0:00:20]} 29. a3 {[%clk 0:01:42]}  c4 {[%clk 0:00:20]} 30. Rxb5 {[%clk 0:01:38]}  c3 {[%clk 0:00:20]} 31. bxc3 {[%clk 0:01:37]}  dxc3 {[%clk 0:00:21]} 32. Rb1 {[%clk 0:01:37]}  c2 {[%clk 0:00:21]} 33. Rc1 {[%clk 0:01:37]}  Rc3 {[%clk 0:00:20]} 34. f3 {[%clk 0:01:14]}  Ba2 {[%clk 0:00:17]} 35. Kf2 {[%clk 0:01:12]}  Bb1 {[%clk 0:00:17]} 36. Ke3 {[%clk 0:01:05]}  Rxa3 {[%clk 0:00:17]} 37. Kd2 {[%clk 0:01:05]}  Kg7 {[%clk 0:00:16]} 38. d4 {[%clk 0:01:04]}  Ra4 {[%clk 0:00:16]} 39. Kc3 {[%clk 0:01:03]}  Ra3+ {[%clk 0:00:14]} 40. Kb4 {[%clk 0:00:57]}  Re3 {[%clk 0:00:14]} 41. Kc4 {[%clk 0:00:54]}  Kf6 {[%clk 0:00:13]} 42. Bd3 {[%clk 0:00:53]}  Ke6 {[%clk 0:00:11]} 43. Kc3 {[%clk 0:00:53]}  Kd5 {[%clk 0:00:10]} 44. Kd2 {[%clk 0:00:52]}  Kxd4 {[%clk 0:00:10]} 45. Bxc2 {[%clk 0:00:50]}  Bxc2 {[%clk 0:00:10]} 46. Rxc2 {[%clk 0:00:50]}  Ra3 {[%clk 0:00:11]} 47. Ke2 {[%clk 0:00:47]}  f5 {[%clk 0:00:10]} 48. Rd2+ {[%clk 0:00:46]}  Ke5 {[%clk 0:00:10]} 49. Kf2 {[%clk 0:00:45]}  g5 {[%clk 0:00:10]} 50. Re2+ {[%clk 0:00:44]}  Kd4 {[%clk 0:00:10]} 51. Re8 {[%clk 0:00:42]}  Ra2+ {[%clk 0:00:09]} 52. Kg1 {[%clk 0:00:42]}  Kd5 {[%clk 0:00:09]} 53. Kh2 {[%clk 0:00:41]}  Ra6 {[%clk 0:00:07]} 54. Rg8 {[%clk 0:00:39]}  Rh6+ {[%clk 0:00:08]} 55. Kg1 {[%clk 0:00:39]}  Rh5 {[%clk 0:00:09]} 56. Kf2 {[%clk 0:00:35]}  Ke5 {[%clk 0:00:08]} 57. Re8+ {[%clk 0:00:34]}  Kf6 {[%clk 0:00:08]} 58. Ra8 {[%clk 0:00:34]}  Rh7 {[%clk 0:00:08]} 59. Ra6+ {[%clk 0:00:33]}  Ke5 {[%clk 0:00:06]} 60. Ke3 {[%clk 0:00:30]}  f4+ {[%clk 0:00:05]} 61. gxf4+ {[%clk 0:00:30]}  gxf4+ {[%clk 0:00:05]} 62. Kf2 {[%clk 0:00:30]}  Rb7 {[%clk 0:00:06]} 63. Ra5+ {[%clk 0:00:29]}  Kf6 {[%clk 0:00:05]} 64. Kg1 {[%clk 0:00:27]}  Rb2 {[%clk 0:00:05]} 65. Kh2 {[%clk 0:00:26]}  Rb8 {[%clk 0:00:05]} 66. Kh3 {[%clk 0:00:25]}  Rg8 {[%clk 0:00:05]} 67. Kh2 {[%clk 0:00:22]}  Rh8+ {[%clk 0:00:05]} 68. Kg1 {[%clk 0:00:22]}  Rb8 {[%clk 0:00:05]} 69. Ra4 {[%clk 0:00:18]}  Kf5 {[%clk 0:00:05]} 70. Ra5+ {[%clk 0:00:18]}  Kf6 {[%clk 0:00:05]} 71. Rc5 {[%clk 0:00:17]}  Ra8 {[%clk 0:00:05]} 72. Kh2 {[%clk 0:00:16]}  Rh8+ {[%clk 0:00:05]} 73. Kg1 {[%clk 0:00:16]}  Ra8 {[%clk 0:00:06]} 74. Rc2 {[%clk 0:00:15]}  Kf5 {[%clk 0:00:06]} 75. Kf2 {[%clk 0:00:15]}  Ra3 {[%clk 0:00:05]} 76. Rb2 {[%clk 0:00:14]}  Rc3 {[%clk 0:00:05]} 77. g3 {[%clk 0:00:13]}  fxg3+ {[%clk 0:00:04]} 78. Kxg3 {[%clk 0:00:13]}  Rc4 {[%clk 0:00:04]} 79. Rb5+ {[%clk 0:00:13]}  Kf6 {[%clk 0:00:04]} 80. f4 {[%clk 0:00:13]}  Rc1 {[%clk 0:00:03]} 81. Kf3 {[%clk 0:00:12]}  Rf1+ {[%clk 0:00:03]} 82. Ke3 {[%clk 0:00:13]}  Re1+ {[%clk 0:00:03]} 83. Kf2 {[%clk 0:00:13]}  Re4 {[%clk 0:00:03]} 84. Kf3 {[%clk 0:00:13]}  Re1 {[%clk 0:00:04]} 85. Rb6+ {[%clk 0:00:11]}  Kf5 {[%clk 0:00:04]} 86. Rb5+ {[%clk 0:00:11]}  Kf6 {[%clk 0:00:04]} 87. Rb4 {[%clk 0:00:10]}  Rf1+ {[%clk 0:00:03]} 88. Kg2 {[%clk 0:00:09]}  Re1 {[%clk 0:00:03]} 89. Kg3 {[%clk 0:00:08]}  Rg1+ {[%clk 0:00:03]} 90. Kf2 {[%clk 0:00:08]}  Rd1 {[%clk 0:00:03]} 91. Ke3 {[%clk 0:00:07]}  Re1+ {[%clk 0:00:03]} 92. Kf3 {[%clk 0:00:06]}  Rc1 {[%clk 0:00:02]} 93. Re4 {[%clk 0:00:04]}  Rf1+ {[%clk 0:00:02]} 94. Kg2 {[%clk 0:00:04]}  Rc1 {[%clk 0:00:02]} 95. Kg3 {[%clk 0:00:03]}  Rg1+ {[%clk 0:00:02]} 96. Kf2 {[%clk 0:00:03]}  Rc1 {[%clk 0:00:01]} 97. Rb4 {[%clk 0:00:03]}  Rd1 {[%clk 0:00:01]} 0-1


[Site "https://www.chess.com"]